bitfinex-derivatives/quotes_SOLF0:USTF0_20260312
["timestamp","ask_amount","ask_price","bid_price","bid_amount"]
[1773355800009,36.56,86.048,86.004,22.52552012]
[1773355800611,36.56,86.048,86.007,22.52522882]
[1773355803000,36.56,86.048,86.011,22.56387175]
[1773355803811,36.56,86.051,86.011,22.56387175]
[1773355805313,10.457,86.05,86.011,22.56387175]
[1773355805716,36.56,86.051,86.011,22.56387175]
[1773355808320,2.08,86.054,86.013,22.52614786]
[1773355808511,36.56,86.053,86.013,22.52614786]
[1773355812614,10.457,86.052,86.013,22.52614786]
[1773355813016,36.56,86.051,86.013,22.52614786]
[1773355814517,36.56,86.051,86.0,3.45806411]
[1773355814518,36.56,86.051,86.016,22.57368237]
[1773355821333,3.45806411,86.04,85.98,3.45806411]
[1773355821533,3.45806411,86.03,85.981,22.55062944]
[1773355822331,10.46,86.028,85.985,22.55037595]
[1773355822529,3.45806411,86.02,85.985,22.55037595]
[1773355825430,36.56,86.021,85.985,22.55037595]
[1773355825631,3.45806411,86.02,85.985,22.55037595]
[1773355826334,36.56,86.021,85.988,22.57579087]
[1773355826638,36.56,86.03,85.988,22.57579087]
[1773355827335,36.56,86.03,85.991,22.57931213]
[1773355827834,36.56,86.03,85.993,22.57931213]
[1773355828131,36.56,86.03,86.001,22.57931213]
[1773355828331,40.01806411,86.03,85.989,22.57904773]
[1773355829341,10.46,86.029,85.989,22.57904773]
[1773355829835,2.08,86.054,85.989,22.57904773]
[1773355830043,36.56,86.041,85.999,22.58059644]
[1773355831338,3.45806411,86.04,85.999,22.58059644]
[1773355835045,10.459,86.037,85.999,22.58059644]
[1773355839444,3.45806411,86.03,85.999,22.58059644]
[1773355843645,3.45806411,86.03,85.981,21.68795407]
[1773355843646,3.45806411,86.02,85.987,22.61105281]
[1773355843841,3.45806411,86.01,85.987,22.61105281]
[1773355849049,2.08,86.054,85.987,22.61105281]
[1773355849050,3.45806411,86.03,85.987,22.61105281]
[1773355849853,3.45806411,86.03,85.995,22.5305207]
[1773355850045,36.56,86.035,85.995,22.5305207]
[1773355851247,2.08,86.054,86.004,22.5311074]
[1773355851447,2.08,86.054,86.021,22.5311074]
[1773355851655,3.45806411,86.05,86.021,22.5311074]
[1773355855654,3.45806411,86.04,86.003,22.54963182]
[1773355856059,13.91506411,86.05,86.003,22.54963182]
[1773355856261,3.45806411,86.04,86.003,22.54963182]
[1773355860259,3.45806411,86.05,86.003,22.54963182]
[1773355861365,2.08,86.054,86.013,22.66428323]
[1773355862259,2.08,86.054,85.998,21.68795407]
[1773355862260,3.45806411,86.05,86.017,22.66404896]
[1773355862465,3.45806411,86.04,86.017,22.66404896]
[1773355862763,3.45806411,86.04,85.99,3.45806411]
[1773355862764,3.45806411,86.04,85.991,22.66404896]
[1773355863866,3.45806411,86.04,85.999,22.65928931]
[1773355867472,10.458,86.039,85.999,22.65928931]
[1773355871567,3.45908085,86.03,85.999,22.65928931]
[1773355872167,10.46,86.029,85.999,22.65928931]
[1773355876871,3.45908085,86.03,85.999,22.65928931]
[1773355894277,3.45908085,86.02,85.973,22.65360442]
[1773355894479,3.45908085,86.01,85.973,22.65360442]
[1773355894684,36.58,86.009,85.973,22.65360442]
[1773355896183,3.45908085,86.02,85.973,22.65360442]
[1773355896376,36.58,86.028,85.973,22.65360442]
[1773355896582,36.58,86.029,85.973,22.65360442]
[1773355897888,36.58,86.029,85.985,22.74316217]
[1773355898793,47.04,86.028,85.985,22.74316217]
[1773355899086,3.45908085,86.02,85.985,22.74316217]
[1773355901092,10.461,86.019,85.985,22.74316217]
[1773355901690,3.45908085,86.02,85.985,22.74316217]
[1773355902585,10.46,86.027,85.985,22.74316217]
[1773355918313,3.45908085,86.02,85.985,22.74316217]
[1773355920409,2.08,86.054,85.992,5.32284309]
[1773355920615,38.66,86.054,86.001,5.32284309]
[1773355920918,3.45908085,86.02,85.983,5.32284309]
[1773355921212,3.45908085,86.01,85.983,5.32284309]
[1773355922510,3.45908085,86.0,85.965,5.32284309]
[1773355923114,5.2699348,86.009,85.965,5.32284309]
[1773355923315,3.45908085,86.0,85.965,5.32284309]
[1773355923608,8.72901565,86.0,85.965,5.32284309]
[1773355923812,45.30901565,86.0,85.965,5.32284309]
[1773355927919,45.30901565,86.0,85.964,0.13]
[1773355927920,5.2699348,85.989,85.964,0.13]
[1773355930019,5.2699348,85.979,85.944,0.13]
[1773355930220,5.2699348,85.977,85.944,0.13]
[1773355931324,5.2699348,85.975,85.944,0.13]
[1773355932719,5.2699348,85.959,85.919,5.32284309]
[1773355933918,36.58,85.958,85.935,5.32284309]
[1773355934120,5.20996932,85.971,85.935,5.32284309]
[1773355934425,36.58,85.97,85.935,5.32284309]
[1773355934922,5.20996932,85.971,85.935,5.32284309]
[1773355935118,36.58,85.97,85.935,5.32284309]
[1773355938224,36.58,85.984,85.939,5.32284309]
[1773355938424,41.46799162,85.984,85.939,5.32284309]
[1773355938629,4.88799162,85.983,85.939,5.32284309]
[1773355940026,4.88799162,85.983,85.942,10.47]
[1773355940222,36.58,85.982,85.943,5.32284309]
[1773355940428,4.81665452,86.004,85.951,5.32284309]
[1773355940731,41.36868467,86.003,85.953,5.25343335]
[1773355941037,36.58,86.003,85.961,5.25343335]
[1773355941426,36.58,86.003,85.971,5.25343335]
[1773355942527,36.58,86.008,85.973,5.25343335]
[1773355943127,36.58,86.008,85.977,5.25343335]
[1773355944130,36.58,86.008,85.979,10.466]
[1773355946333,36.58,86.013,85.979,10.466]
[1773355946829,36.58,86.013,85.977,5.25343335]
[1773355947031,4.65948426,86.012,85.977,5.25343335]
[1773355949747,4.58109435,86.009,85.977,5.25343335]
[1773355950548,4.58109435,86.009,85.967,10.467]
[1773355952147,4.58109435,86.009,85.968,5.25343335]
[1773355954848,4.58109435,86.009,85.97,10.467]
[1773355955349,4.58109435,86.009,85.971,5.25343335]
[1773355955548,36.58,86.013,85.974,5.25343335]
[1773355956149,4.45381125,86.012,85.974,5.25343335]
[1773355956850,4.45381125,86.012,85.975,10.466]
[1773355965352,4.45381125,86.012,85.975,15.17017172]
[1773355966150,4.45381125,86.012,85.976,4.70417172]
[1773355969853,10.462,86.011,85.976,4.70417172]
[1773355970056,14.58338903,86.011,85.976,4.70417172]
[1773355970358,36.58,86.013,85.978,4.70417172]
[1773355973059,36.58,86.013,85.986,4.90531838]
[1773355973561,40.69724514,86.013,85.971,4.90531838]
[1773355974854,40.69724514,86.013,85.978,10.466]
[1773355975051,40.69724514,86.013,85.979,4.90531838]
[1773355980061,40.69724514,86.013,85.98,10.465]
[1773355980363,40.69724514,86.013,85.981,4.90531838]
[1773355980961,40.69724514,86.013,85.983,10.465]
[1773355981161,40.69724514,86.013,85.984,4.90531838]
[1773355982961,4.00605459,86.012,85.976,10.466]
[1773355983155,4.00605459,86.012,85.974,4.90531838]
[1773355983762,4.13228394,86.01,85.974,4.90531838]
[1773355983957,4.13228394,86.01,85.974,15.37131838]
[1773355985364,4.13228394,86.01,85.975,4.90531838]
[1773355985760,4.29257285,86.009,85.975,4.90531838]
[1773355992673,4.29257285,86.009,85.971,10.466]
[1773355994881,4.29257285,86.009,85.971,15.37131838]
[1773355995881,4.29257285,86.009,85.973,10.466]
[1773355996278,3.46122686,85.99,85.958,4.90531838]
[1773355996483,40.74233684,85.989,85.958,4.90531838]
[1773355996982,40.74233684,85.989,85.959,15.37331838]
[1773355998085,4.13566692,85.988,85.952,10.469]
[1773355998278,4.13566692,85.988,85.952,15.37431838]
[1773355999283,4.13566692,85.988,85.952,4.90531838]
[1773355999585,4.20645038,85.987,85.952,4.90531838]
[1773356000187,4.20645038,85.987,85.961,10.468]
[1773356000389,36.58,85.989,85.962,4.90531838]
[1773356001488,3.46122686,86.01,85.972,4.58984795]
[1773356001793,36.58,86.009,85.972,4.58984795]
[1773356002389,4.17397308,86.008,85.972,4.58984795]
[1773356002690,4.16077346,86.006,85.972,4.58984795]
[1773356005187,40.71835456,86.005,85.972,4.58984795]
[1773356006587,4.11431742,86.004,85.972,4.58984795]
[1773356018202,36.58,86.003,85.972,4.58984795]
[1773356019904,36.58,86.003,85.973,10.466]
[1773356020104,36.58,86.003,85.973,15.05584795]
[1773356021203,36.58,86.003,85.974,4.58984795]
[1773356032808,40.6453649,86.003,85.974,4.58984795]
[1773356035207,4.05022168,86.002,85.974,4.58984795]
[1773356039210,36.6,86.001,85.974,4.58984795]
[1773356039619,4.01168774,85.999,85.966,10.467]
[1773356040217,4.01168774,85.999,85.968,10.467]
[1773356042318,4.01168774,85.999,85.967,4.39409563]
[1773356042319,36.6,85.998,85.971,4.39409563]
[1773356045618,36.6,85.998,85.972,10.466]
[1773356045820,36.6,85.998,85.973,4.39409563]
[1773356046817,3.96459257,86.011,85.973,4.39409563]
[1773356047020,36.6,86.01,85.973,4.39409563]
[1773356048422,36.6,86.01,85.975,4.39409563]
[1773356049324,40.06122686,86.01,85.975,4.39409563]
[1773356049925,40.06122686,86.01,85.977,4.39409563]
[1773356051328,43.9917071,86.01,85.977,4.39409563]
[1773356051530,43.99161198,86.01,85.977,4.39409563]
[1773356052225,10.462,86.008,85.977,4.39409563]
[1773356052525,7.38443378,86.0,85.968,4.39409563]
[1773356053028,3.92330204,86.0,85.968,4.39409563]
[1773356053833,3.91431263,86.009,85.977,10.466]
[1773356054032,36.6,86.01,85.978,4.39409563]
[1773356054930,36.6,86.01,85.98,14.85909563]
[1773356055324,3.90737628,86.009,85.98,14.85909563]
[1773356057533,36.6,86.008,85.98,14.85909563]
[1773356058733,36.6,86.013,85.986,4.39409563]
[1773356060027,36.6,86.013,85.989,10.464]
[1773356062628,3.86621329,86.019,85.989,10.464]
[1773356062834,36.6,86.018,85.989,10.464]
[1773356064239,36.6,86.018,85.989,14.8160077]
[1773356064833,36.6,86.017,85.989,14.8160077]
[1773356065233,3.86621329,86.019,85.989,14.8160077]
[1773356065438,36.58,86.018,85.989,14.8160077]
[1773356065838,3.86621329,86.019,85.989,14.8160077]
[1773356066042,36.6,86.018,85.989,14.8160077]
[1773356066239,3.81879733,86.017,85.989,14.8160077]
[1773356066837,40.41283625,86.016,85.989,14.8160077]
[1773356070836,3.82448817,86.015,85.989,10.464]
[1773356071043,3.82448817,86.009,85.978,4.3520077]
[1773356074051,3.82448817,86.009,85.983,10.465]
[1773356080964,3.82448817,86.009,85.983,14.8170077]
[1773356081163,36.6,86.016,85.983,14.8170077]
[1773356081658,36.6,86.016,85.984,4.3520077]
[1773356083261,3.60421047,86.018,85.984,4.3520077]
[1773356083464,40.05588175,86.017,85.984,4.3520077]
[1773356083860,40.05588175,86.017,85.983,10.465]
[1773356083861,3.45093963,86.016,85.976,14.33410198]
[1773356084060,6.91207137,86.01,85.976,14.33410198]
[1773356084262,6.91207137,86.01,85.977,3.86810198]
[1773356084659,6.91207137,86.01,85.978,10.466]
[1773356084861,6.91207137,86.01,85.979,3.86810198]
[1773356085660,3.45093963,86.01,85.979,3.86810198]
[1773356088070,3.45093963,86.01,85.98,10.465]
[1773356088368,3.45093963,86.01,85.981,3.86810198]
[1773356088961,36.6,86.017,85.981,3.86810198]
[1773356091165,36.6,86.017,85.995,3.99412764]
[1773356091366,43.54582468,86.03,85.995,3.99412764]
[1773356091567,36.6,86.03,85.995,3.99412764]
[1773356092473,36.6,86.03,86.003,3.99412764]
[1773356093168,6.94582468,86.04,86.003,3.99412764]
[1773356093568,3.48469294,86.04,86.006,3.99412764]
[1773356094072,36.6,86.042,86.006,3.99412764]
[1773356095075,36.6,86.042,86.009,3.99412764]
[1773356095467,10.77210334,86.094,86.0,3.46113174]
[1773356095468,3.45482529,86.049,86.032,0.13]
[1773356095766,3.45482529,86.049,86.022,0.13]
[1773356096173,3.46113174,86.05,86.022,0.13]
[1773356096174,0.26,86.042,86.022,0.13]
[1773356097273,3.48583839,86.039,86.012,0.13]
[1773356097473,3.48583839,86.036,86.012,0.13]
[1773356098370,3.48184825,86.029,86.012,0.13]
[1773356100476,0.39,86.037,86.012,0.13]
[1773356101777,10.77210334,86.088,86.012,0.13]
[1773356101778,3.48605341,86.051,86.013,3.99412764]
[1773356102178,3.35605341,86.051,86.041,0.13]
[1773356102676,36.6,86.054,86.041,0.13]
[1773356103680,36.6,86.054,86.031,0.13]
[1773356103874,0.26,86.051,86.031,0.13]
[1773356109891,174.03808533,86.107,86.031,4.12412764]
[1773356110082,14.70649141,86.15,86.064,162.644]
[1773356110279,28.62748815,86.233,86.097,0.13]
[1773356110280,36.6,86.184,86.097,0.13]
[1773356110482,36.6,86.183,86.1,3.46113174]
[1773356110685,3.46113174,86.17,86.11,3.46113174]
[1773356110891,36.6,86.177,86.097,0.13]
[1773356111090,3.46113174,86.18,86.12,3.46113174]
[1773356111282,3.46113174,86.18,86.128,10.447]
[1773356111791,3.44817685,86.17,86.128,10.447]
[1773356111991,3.44817685,86.18,86.128,10.447]
[1773356112385,32.3642476,86.179,86.128,10.447]
[1773356112588,32.3642476,86.149,86.111,10.449]
[1773356112895,3.44817685,86.14,86.097,0.13]
[1773356113190,32.3642476,86.14,86.097,0.13]
[1773356113393,35.81242445,86.14,86.097,0.13]
[1773356113991,3.44817685,86.13,86.097,0.13]
[1773356114392,3.44817685,86.11,86.087,0.13]
[1773356114697,32.41224415,86.119,86.087,0.13]
[1773356115795,3.44817685,86.12,86.087,0.13]
[1773356115995,3.44817685,86.13,86.087,0.13]
[1773356116190,0.26,86.154,86.09,3.44817685]
[1773356116191,3.44817685,86.14,86.09,3.44817685]
[1773356116584,3.44817685,86.15,86.1,3.44817685]
[1773356117596,3.44817685,86.15,86.11,10.45]
[1773356119595,27.04929143,86.15,86.11,10.45]
[1773356119795,3.44817685,86.14,86.099,10.451]
[1773356120191,3.44817685,86.14,86.087,0.13]
[1773356120596,3.44817685,86.14,86.109,10.45]
[1773356122400,3.44817685,86.17,86.12,3.44817685]
[1773356122791,23.58211936,86.181,86.15,0.13]
[1773356122792,3.44817685,86.18,86.15,0.13]
[1773356122992,23.58211936,86.179,86.15,0.13]
[1773356123194,3.44817685,86.17,86.15,0.13]
[1773356123399,3.44817685,86.17,86.14,0.13]
[1773356123701,0.39,86.165,86.14,0.13]
[1773356127903,23.3615687,86.149,86.12,0.13]
[1773356128106,3.44817685,86.14,86.12,0.13]
[1773356128306,23.3615687,86.149,86.12,0.13]
[1773356131406,3.44817685,86.14,86.12,0.13]
[1773356132501,0.65,86.155,86.11,0.13]
[1773356132502,3.44817685,86.13,86.11,0.13]
[1773356132710,26.69284448,86.13,86.102,10.451]
[1773356133002,26.69284448,86.13,86.09,0.13]
[1773356133003,3.44817685,86.12,86.09,0.13]
[1773356134003,26.69284448,86.13,86.09,0.13]
[1773356134907,26.69284448,86.13,86.1,10.581]
[1773356139418,3.44817685,86.14,86.1,10.581]
[1773356139913,26.65944618,86.14,86.1,10.581]
[1773356143112,23.12889465,86.129,86.1,10.581]
[1773356143718,26.56822247,86.12,86.1,0.13]
[1773356144113,26.56822247,86.12,86.092,10.452]
[1773356145921,26.56822247,86.12,86.09,0.13]
[1773356145922,23.04604478,86.136,86.09,0.13]
[1773356146517,23.04212081,86.129,86.099,10.451]
[1773356147817,23.06632572,86.119,86.091,10.452]
[1773356153825,3.44817685,86.13,86.091,10.452]
[1773356154621,3.44817685,86.13,86.101,10.451]
[1773356155020,26.41375737,86.13,86.101,10.451]
[1773356155426,26.41375737,86.13,86.09,14.35612892]
[1773356155427,26.41375737,86.13,86.093,10.452]
[1773356156626,26.41375737,86.13,86.098,14.22612892]
[1773356157221,26.41375737,86.13,86.099,14.22612892]
[1773356157422,3.44817685,86.12,86.099,14.22612892]
[1773356158120,26.41375737,86.13,86.099,14.22612892]
[1773356160229,26.41375737,86.13,86.1,14.22612892]
[1773356161132,26.41375737,86.13,86.093,10.452]
[1773356164633,10.447,86.129,86.093,10.452]
[1773356164838,15.87979521,86.119,86.09,0.13]
[1773356165438,15.87979521,86.119,86.091,10.452]
[1773356167738,15.87979521,86.119,86.097,10.451]
[1773356167945,15.87979521,86.119,86.09,0.13]
[1773356167946,15.86982181,86.139,86.09,0.13]
[1773356168145,15.86982181,86.139,86.09,3.57817685]
[1773356168443,15.86982181,86.139,86.068,20.91]
[1773356168444,3.44817685,86.17,86.11,3.44817685]
[1773356168640,3.44817685,86.17,86.129,0.13]
[1773356169140,3.44817685,86.17,86.133,10.447]
[1773356170246,3.44817685,86.16,86.133,10.447]
[1773356170740,7.92601324,86.139,86.109,0.13]
[1773356170941,3.44817685,86.13,86.074,21.36632031]
[1773356171138,3.44817685,86.13,86.08,3.44817685]
[1773356171944,3.44817685,86.13,86.102,10.451]
[1773356172851,0.39,86.144,86.118,10.449]
[1773356173043,7.84092412,86.159,86.1,3.44817685]
[1773356173545,7.84092412,86.159,86.1,3.44910026]
[1773356173846,7.84092412,86.159,86.117,10.449]
[1773356175440,7.84092412,86.159,86.1,24.81542057]
[1773356175644,7.84092412,86.159,86.101,21.36632031]
[1773356175944,7.84092412,86.159,86.1,24.81542057]
[1773356176546,7.84092412,86.159,86.124,10.448]
[1773356176738,7.84092412,86.159,86.134,0.13]
[1773356176938,3.44910026,86.15,86.134,0.13]
[1773356177444,3.31910026,86.15,86.134,0.13]
[1773356177640,7.84092412,86.159,86.134,0.13]
[1773356185048,7.84092412,86.159,86.124,10.578]
[1773356185353,0.39,86.141,86.124,0.13]
[1773356187954,0.39,86.141,86.117,10.449]
[1773356188156,0.52,86.138,86.117,10.449]
[1773356192761,0.52,86.138,86.104,0.26]
[1773356192762,11.04391227,86.13,86.104,0.26]
[1773356193253,11.04391227,86.13,86.105,10.45]
[1773356193460,3.44910026,86.13,86.105,10.45]
[1773356193660,0.78,86.132,86.105,10.45]
[1773356198167,0.78,86.132,86.104,0.26]
[1773356198371,3.44910026,86.13,86.104,0.26]
[1773356203866,10.446,86.139,86.094,0.26]
[1773356203867,3.44910026,86.12,86.094,1.74788442]
[1773356204072,1.04,86.126,86.094,1.74788442]
[1773356204368,11.45822914,86.14,86.106,10.45]
[1773356206966,11.32822914,86.14,86.12,0.13]
[1773356207667,0.39,86.135,86.1,0.13]
[1773356207872,3.44910026,86.13,86.1,0.13]
[1773356208171,0.39,86.135,86.1,7.67945137]
[1773356208869,0.39,86.135,86.103,10.45]
[1773356209372,0.39,86.135,86.104,7.54945137]
[1773356210972,0.39,86.135,86.106,10.45]
[1773356214274,0.39,86.135,86.104,7.54945137]
[1773356215374,3.44910026,86.13,86.1,0.13]
[1773356216272,8.52337136,86.135,86.102,8.51952649]
[1773356217876,0.39,86.135,86.107,18.96952649]
[1773356218071,0.39,86.135,86.108,8.51952649]
[1773356219875,0.39,86.135,86.109,10.45]
[1773356222076,8.13337136,86.134,86.1,0.13]
[1773356222375,8.13337136,86.134,86.102,10.451]
[1773356223282,8.13337136,86.134,86.108,10.45]
[1773356223677,0.39,86.135,86.114,10.449]
[1773356224181,0.39,86.135,86.107,10.45]
[1773356225079,8.52337136,86.135,86.107,10.45]
[1773356229085,11.58247162,86.13,86.1,19.10052649]
[1773356229581,3.44910026,86.13,86.1,19.10052649]
[1773356229784,3.44910026,86.12,86.1,0.13]
[1773356233786,3.45230584,86.12,86.1,0.13]
[1773356237084,3.45230584,86.11,86.09,0.13]
[1773356238181,8.13337136,86.119,86.09,0.13]
[1773356238386,11.5856772,86.1,86.08,0.13]
[1773356238686,11.5856772,86.1,86.061,8.51952649]
[1773356238884,3.45230584,86.1,86.074,10.454]
[1773356239092,3.45230584,86.11,86.075,8.51952649]
[1773356239984,3.45230584,86.11,86.089,10.452]
[1773356240585,0.91,86.115,86.089,10.452]
[1773356241492,0.91,86.115,86.075,8.51952649]
[1773356241493,9.90040672,86.115,86.081,10.453]
[1773356241988,9.90040672,86.115,86.081,10.00622669]
[1773356245684,3.45230584,86.11,86.081,10.00622669]
[1773356252801,9.90040672,86.115,86.081,18.75634608]
[1773356253001,3.45230584,86.11,86.083,10.453]
[1773356254808,9.90040672,86.115,86.083,10.453]
[1773356257810,3.45230584,86.11,86.083,10.453]
[1773356261209,12.44271256,86.11,86.083,10.453]
[1773356261709,0.91,86.115,86.083,19.20311939]
[1773356262102,9.90040672,86.115,86.083,19.20311939]
[1773356266714,9.90040672,86.115,86.084,9.26957284]
[1773356267615,9.90040672,86.115,86.086,10.453]
[1773356268913,9.90040672,86.115,86.084,9.26957284]
[1773356270119,3.45230584,86.11,86.084,9.26957284]
[1773356276519,9.90040672,86.115,86.084,9.26957284]
[1773356278722,3.45230584,86.11,86.084,9.26957284]
[1773356280022,0.91,86.115,86.084,9.26957284]
[1773356280923,10.64940212,86.115,86.084,9.26957284]
[1773356286133,0.91,86.115,86.084,9.26957284]
[1773356286625,0.91,86.115,86.06,0.13]
[1773356286626,9.73940212,86.139,86.091,9.88617735]
[1773356286825,9.60940212,86.139,86.106,9.88617735]
[1773356287826,40.01230584,86.14,86.106,9.88617735]
[1773356288533,3.45230584,86.14,86.106,9.88617735]
[1773356289333,9.73940212,86.139,86.106,9.88617735]
[1773356292233,3.45230584,86.14,86.106,9.88617735]
[1773356293535,0.13,86.144,86.106,9.88617735]
[1773356294624,9.73940212,86.139,86.105,0.13]
[1773356294825,3.45230584,86.13,86.105,10.01617735]
[1773356295138,3.45230584,86.14,86.105,10.01617735]
[1773356295633,3.45053869,86.14,86.105,10.01617735]
[1773356296036,3.45053869,86.14,86.108,9.88617735]
[1773356299635,3.45053869,86.14,86.109,10.45]
[1773356299845,3.45053869,86.14,86.11,9.88617735]
[1773356300339,3.45053869,86.14,86.113,9.88617735]
[1773356301844,3.45053869,86.14,86.114,10.449]
[1773356302142,0.13,86.144,86.115,9.54374567]
[1773356302742,0.13,86.144,86.123,10.448]
[1773356303139,3.45053869,86.16,86.124,9.54374567]
[1773356303438,3.45053869,86.16,86.11,3.45053869]
[1773356303439,3.32053869,86.16,86.15,0.13]
[1773356303632,3.32053869,86.16,86.14,0.13]
[1773356304330,3.58053869,86.16,86.14,0.13]
[1773356308643,0.26,86.16,86.14,0.13]
[1773356308845,3.71053869,86.16,86.14,0.13]
[1773356311645,3.45053869,86.15,86.13,0.13]
[1773356313546,0.39,86.155,86.13,0.13]
[1773356317353,3.45053869,86.14,86.12,10.578]
[1773356318357,10.02559926,86.149,86.12,10.578]
[1773356321553,10.02559926,86.149,86.12,0.13]
[1773356321755,10.02559926,86.139,86.12,0.13]
[1773356328463,0.52,86.15,86.121,9.58509646]
[1773356328666,0.001,86.15,86.131,9.58509646]
[1773356328967,0.001,86.15,86.142,10.446]
[1773356337275,0.001,86.15,86.146,9.66254802]
[1773356338873,0.001,86.15,86.147,10.445]
[1773356349279,9.96132205,86.199,86.172,10.442]
[1773356349571,9.83132205,86.199,86.189,0.13]
[1773356349774,9.83132205,86.199,86.179,0.13]
[1773356350373,10.09132205,86.199,86.179,0.13]
[1773356350878,3.45053869,86.19,86.179,0.13]
[1773356351066,3.45053869,86.19,86.169,0.13]
[1773356351581,0.39,86.194,86.169,0.13]
[1773356351780,3.45053869,86.19,86.169,0.13]
[1773356353576,0.39,86.194,86.169,0.13]
[1773356353773,10.35132205,86.194,86.169,0.13]
[1773356354280,10.48132205,86.189,86.165,10.443]
[1773356355582,3.44702105,86.18,86.148,9.66254802]
[1773356356286,10.48132205,86.189,86.166,10.443]
[1773356357978,0.52,86.189,86.167,9.66254802]
[1773356358378,0.52,86.189,86.168,10.443]
[1773356361683,0.52,86.189,86.167,9.66254802]
[1773356361684,9.78409324,86.188,86.155,10.44613523]
[1773356361884,0.52,86.189,86.159,10.57613523]
[1773356362294,0.52,86.189,86.169,10.44613523]
[1773356363288,0.52,86.189,86.176,10.442]
[1773356363289,0.001,86.189,86.176,10.442]
[1773356366991,0.001,86.189,86.184,20.88713523]
[1773356368195,0.001,86.189,86.177,10.442]
[1773356380202,0.001,86.189,86.17,10.442]
[1773356382199,0.001,86.189,86.17,20.88813523]
[1773356386003,0.001,86.189,86.171,10.78585099]
[1773356386213,0.001,86.189,86.15,3.44702105]
[1773356386214,19.51637055,86.281,86.2,3.44702105]
[1773356386504,21.43657051,86.327,86.177,162.43]
[1773356386505,19.38568937,86.304,86.271,0.13]
[1773356386710,19.38568937,86.304,86.275,10.43]
[1773356386903,3.44702105,86.32,86.275,10.43]
[1773356387209,0.13,86.309,86.275,10.43]
[1773356387408,0.13,86.309,86.271,0.13]
[1773356388903,0.13,86.309,86.272,10.43]
[1773356392010,19.57875366,86.309,86.271,0.13]
[1773356392214,22.89577471,86.29,86.261,0.13]
[1773356392708,19.44875366,86.29,86.261,0.13]
[1773356393615,0.26,86.293,86.261,0.13]
[1773356395809,3.44702105,86.29,86.261,0.13]
[1773356396016,22.7724292,86.29,86.261,0.13]
[1773356400323,19.32540815,86.29,86.261,0.13]
[1773356400524,22.7724292,86.29,86.261,0.13]
[1773356400725,19.22340957,86.279,86.251,0.13]
[1773356400923,3.44702105,86.27,86.222,2.03813112]
[1773356401116,0.52,86.277,86.234,2.03813112]
[1773356401318,0.52,86.277,86.193,36.5]
[1773356401319,20.835,86.378,86.27,3.44702105]
[1773356401624,3.44702105,86.35,86.29,5.80019252]
[1773356401816,3.44702105,86.34,86.29,5.80019252]
[1773356402020,3.44702105,86.34,86.29,2.35317147]
[1773356402224,3.44702105,86.34,86.252,36.5]
[1773356402225,3.31702105,86.32,86.276,2.40731362]
[1773356402420,3.57702105,86.32,86.3,0.13]
[1773356402627,0.26,86.32,86.3,0.13]
[1773356403328,10.25646171,86.33,86.3,10.557]
[1773356403530,20.828,86.406,86.301,2.22307919]
[1773356403531,10.37865329,86.359,86.301,2.22307919]
[1773356403817,10.37865329,86.339,86.32,0.13]
[1773356404219,10.37865329,86.339,86.31,0.13]
[1773356404415,36.5,86.384,86.3,0.13]
[1773356404416,10.37865329,86.329,86.3,0.13]
[1773356404615,0.39,86.328,86.3,0.13]
[1773356406423,10.9977868,86.328,86.3,0.13]
[1773356406818,10.4777868,86.309,86.28,0.13]
[1773356407014,3.44702105,86.3,86.28,0.13]
[1773356407720,3.44702105,86.3,86.27,0.13]
[1773356407721,10.46807375,86.299,86.27,0.13]
[1773356408320,3.44702105,86.29,86.27,0.13]
[1773356408720,10.46807375,86.299,86.27,0.13]
[1773356409728,3.44702105,86.3,86.27,0.13]
[1773356411129,0.78,86.312,86.272,2.6322336]
[1773356411530,0.001,86.312,86.292,10.428]